fUST/lending_fUST_20240614
["ID","MTS","AMOUNT","RATE_DAILY","PERIOD"]
[329451531,1718373052763,-3886.74100782,0.00018499,2]
[329451533,1718373634962,165.324909,0.00023562,60]
[329451534,1718373635363,165.324909,0.00023562,69]
[329451535,1718373635747,165.324909,0.00023562,77]
[329451536,1718373636352,165.324909,0.00023562,86]
[329451537,1718373636775,165.324909,0.00023562,94]
[329451538,1718373637143,165.324909,0.00023562,103]
[329451539,1718373637510,165.324909,0.00023562,111]
[329451540,1718373637914,165.324909,0.00023562,119]
[329451542,1718374208147,165.324909,0.00023562,61]
[329451543,1718374208537,165.324909,0.00023562,80]
[329451544,1718374208961,165.324909,0.00023562,100]
[329451545,1718374215119,165.324909,0.00023562,120]
[329451604,1718374235956,-650.26151516,0.00015704,2]
[329451606,1718374235980,-2349.73848484,0.00015704,2]
[329451607,1718374235999,-2364.705673,0.00015814,2]
[329451608,1718374236040,-335.121993,0.0001587,2]
[329451609,1718374236053,-250.0,0.00016,2]
[329451610,1718374236085,-157.919579,0.00016164,2]
[329451611,1718374236101,-732.8827837,0.00016218,2]
[329451612,1718374236125,-303.75830096,0.00017694,2]
[329451613,1718374236148,-84.85590958,0.00017694,2]
[329451614,1718374236163,-175.27390031,0.00017694,2]
[329451673,1718374246184,-82.19055146,0.00017694,2]
[329451675,1718374246197,-500.0,0.00017793,2]
[329451677,1718374246211,-500.0,0.00017793,2]
[329451678,1718374246231,-994.83,0.00017793,2]
[329451680,1718374246259,-500.0,0.00017793,2]
[329451682,1718374246293,-377.54,0.00017794,2]
[329451683,1718374246304,-500.0,0.00017794,2]
[329451685,1718374246319,-317.00474135,0.00017794,2]
[329451713,1718374246921,-182.99525865,0.00017794,2]
[329451715,1718374246934,-500.0,0.00017794,2]
[329451716,1718374246946,-516.35672096,0.00017794,2]
[329451718,1718374246976,-98.84388946,0.00017794,2]
[329451830,1718374249427,-401.15611054,0.00017794,2]
[329451831,1718374249442,-500.0,0.00017794,2]
[329451833,1718374249453,-500.0,0.00017794,2]
[329451835,1718374249465,-500.0,0.00017794,2]
[329451837,1718374249478,-60.20663949,0.00017794,2]
[329451839,1718374249495,-439.79336051,0.00017794,2]
[329451841,1718374249508,-500.0,0.00017794,2]
[329451843,1718374249519,-273.40118207,0.00017794,2]
[329451845,1718374249542,-501.90321206,0.00017794,2]
[329451847,1718374249554,-500.0,0.00017794,2]
[329451849,1718374249565,-500.0,0.00017794,2]
[329451851,1718374249587,-500.0,0.00017794,2]
[329451853,1718374249598,-500.0,0.00017794,2]
[329451855,1718374249609,-500.0,0.00017794,2]
[329451857,1718374249626,-500.0,0.00017794,2]
[329451860,1718374249643,-504.03904831,0.00017794,2]
[329451861,1718374249656,-500.0,0.00017794,2]
[329451863,1718374249679,-500.0,0.00017794,2]
[329451865,1718374249689,-500.0,0.00017794,2]
[329451866,1718374249701,-500.0,0.00017794,2]
[329451868,1718374249717,-500.0,0.00017794,2]
[329451869,1718374249728,-503.7999781,0.00017794,2]
[329451871,1718374249739,-500.0,0.00017794,2]
[329451873,1718374249749,-500.0,0.00017794,2]
[329451875,1718374249763,-500.0,0.00017794,2]
[329451877,1718374249775,-500.0,0.00017794,2]
[329451879,1718374249788,-213.76310801,0.00017794,2]
[329451881,1718374249804,-262.23951649,0.00017794,2]
[329451883,1718374249820,-511.83380502,0.00017794,2]
[329451887,1718374249854,-500.0,0.00017794,2]
[329451889,1718374249881,-172.43575819,0.00017794,2]
[329451891,1718374249899,-500.0,0.00017794,2]
[329451894,1718374249919,-500.0,0.00017794,2]
[329451896,1718374249965,-500.0,0.00017794,2]
[329451899,1718374249996,-642.48336699,0.00017794,2]
[329451902,1718374250015,-500.0,0.00017794,2]
[329451903,1718374250030,-500.0,0.00017794,2]
[329451906,1718374250061,-500.0,0.00017794,2]
[329451908,1718374250078,-500.0,0.00017794,2]
[329451910,1718374250098,-500.0,0.00017794,2]
[329451911,1718374250114,-500.0,0.00017794,2]
[329451913,1718374250140,-500.0,0.00017794,2]
[329451915,1718374250162,-500.0,0.00017794,2]
[329451918,1718374250195,-500.0,0.00017794,2]
[329451920,1718374250234,-518.35004106,0.00017794,2]
[329451922,1718374250252,-500.0,0.00017794,2]
[329451924,1718374250276,-500.0,0.00017794,2]
[329451926,1718374250292,-500.0,0.00017794,2]
[329451930,1718374250356,-306.66264168,0.00017794,2]
[329451932,1718374250425,-502.60677722,0.00017794,2]
[329451934,1718374250446,-500.0,0.00017794,2]
[329451935,1718374250480,-500.0,0.00017794,2]
[329451938,1718374250579,-606.71,0.00017794,2]
[329451940,1718374250650,-2766.67,0.00017794,2]
[329451943,1718374250688,-509.51176387,0.00017794,2]
[329451945,1718374250719,-500.0,0.00017794,2]
[329451947,1718374250767,-500.0,0.00017794,2]
[329451949,1718374250781,-500.0,0.00017794,2]
[329451951,1718374250796,-1076.57,0.00017794,2]
[329451953,1718374250810,-500.0,0.00017794,2]
[329451955,1718374250823,-500.0,0.00017794,2]
[329451957,1718374250836,-232.5680539,0.00017794,2]
[329451959,1718374250853,-500.0,0.00017794,2]
[329451960,1718374250885,-500.0,0.00017794,2]
[329451962,1718374250899,-500.0,0.00017794,2]
[329451965,1718374250945,-388.49391269,0.00017794,2]
[329451967,1718374250974,-520.51,0.00017794,2]
[329451970,1718374251006,-500.0,0.00017794,2]
[329451972,1718374251034,-500.0,0.00017794,2]
[329451973,1718374251051,-500.0,0.00017794,2]
[329451975,1718374251079,-500.0,0.00017794,2]
[329451977,1718374251095,-500.0,0.00017794,2]
[329451980,1718374251112,-500.0,0.00017794,2]
[329451981,1718374251134,-502.71221611,0.00017794,2]
[329451984,1718374251196,-1396.85,0.00017794,2]
[329451987,1718374251227,-500.0,0.00017794,2]
[329451989,1718374251243,-500.0,0.00017794,2]
[329451991,1718374251266,-1045.05,0.00017794,2]
[329451993,1718374251292,-500.0,0.00017794,2]
[329451997,1718374251362,-500.0,0.00017794,2]
[329451999,1718374251376,-500.0,0.00017794,2]
[329452000,1718374251389,-500.0,0.00017794,2]
[329452002,1718374251402,-500.0,0.00017794,2]
[329452004,1718374251419,-500.0,0.00017794,2]
[329452006,1718374251452,-500.0,0.00017794,2]
[329452008,1718374251489,-319.30675189,0.00017795,2]
[329452011,1718374251538,-625.14727198,0.00017795,2]
[329452012,1718374251570,-500.0,0.00017795,2]
[329452015,1718374251600,-336.09054098,0.00017795,2]
[329452017,1718374251624,-500.0,0.00017795,2]
[329452019,1718374251638,-500.0,0.00017795,2]
[329452021,1718374251655,-500.0,0.00017795,2]
[329452023,1718374251684,-500.0,0.00017795,2]
[329452024,1718374251712,-500.0,0.00017795,2]
[329452026,1718374251744,-500.0,0.00017795,2]
[329452029,1718374251808,-614.35710696,0.00017795,2]
[329452030,1718374251856,-391.37014632,0.00017795,2]
[329452033,1718374251884,-2189.67,0.00017795,2]
[329452035,1718374251902,-150.09224169,0.00017795,2]
[329452037,1718374251915,-500.0,0.00017795,2]
[329452039,1718374251933,-500.0,0.00017795,2]
[329452041,1718374251945,-500.0,0.00017795,2]
[329452043,1718374251968,-500.0,0.00017795,2]
[329452044,1718374251984,-500.0,0.00017795,2]
[329452045,1718374252024,-1765.5,0.00017795,2]
[329452046,1718374252038,-500.0,0.00017795,2]
[329452049,1718374252087,-500.0,0.00017795,2]
[329452051,1718374252128,-155.04650781,0.00017796,2]
[329452053,1718374252152,-257.46445177,0.00017968,2]
[329452056,1718374252180,-994.83,0.00018067,2]
[329452058,1718374252212,-261.92,0.00018067,2]
[329452060,1718374252272,-265.65,0.00018068,2]
[329452062,1718374252287,-500.0,0.00018068,2]
[329452065,1718374252364,-500.0,0.00018068,2]
[329452067,1718374252384,-2766.67,0.00018068,2]
[329452068,1718374252407,-500.0,0.00018068,2]
[329452071,1718374252446,-623.76,0.00018068,2]
[329452074,1718374252462,-1076.57,0.00018068,2]
[329452076,1718374252477,-500.0,0.00018068,2]
[329452078,1718374252489,-412.96,0.00018068,2]
[329452080,1718374252504,-500.0,0.00018068,2]
[329452082,1718374252534,-500.0,0.00018068,2]
[329452084,1718374252577,-500.0,0.00018068,2]
[329452086,1718374252591,-1045.05,0.00018068,2]
[329452088,1718374252615,-455.09,0.00018068,2]
[329452090,1718374252630,-500.0,0.00018068,2]
[329452092,1718374252646,-222.45,0.00018068,2]
[329452094,1718374252716,-2189.67,0.00018069,2]
[329452095,1718374252731,-500.0,0.00018069,2]
[329452097,1718374252776,-1765.5,0.00018069,2]
[329452099,1718374252834,-355.58136782,0.00018069,2]
[329452101,1718374252866,-144.41863218,0.00018069,2]
[329452103,1718374252898,-257.46445177,0.00018242,2]
[329452105,1718374252913,-1396.85,0.00018341,2]
[329452106,1718374252946,-994.83,0.00018341,2]
[329452108,1718374252960,-500.0,0.00018342,2]
[329452110,1718374252996,-2766.67,0.00018342,2]
[329452112,1718374253035,-288.46,0.00018342,2]
[329452114,1718374253049,-1076.57,0.00018342,2]
[329452116,1718374253079,-500.0,0.00018342,2]
[329452119,1718374253120,-500.0,0.00018342,2]
[329452121,1718374253141,-1045.05,0.00018342,2]
[329452122,1718374253173,-500.0,0.00018342,2]
[329452124,1718374253187,-500.0,0.00018342,2]
[329452126,1718374253201,-2189.67,0.00018343,2]
[329452128,1718374253216,-500.0,0.00018343,2]
[329452130,1718374253231,-532.95691605,0.00018343,2]
[329452132,1718374253252,-1232.54308395,0.00018343,2]
[329452134,1718374253281,-500.0,0.00018343,2]
[329452136,1718374253294,-6751.86493708,0.00018499,2]
[329452139,1718374253346,-151.0,0.00018512,2]
[329452141,1718374253359,-257.46445177,0.00018516,2]
[329452143,1718374253372,-500.0,0.00018517,2]
[329452144,1718374253397,-180.0,0.000186,2]
[329452147,1718374253427,-994.83,0.00018615,2]
[329452150,1718374253465,-500.0,0.00018616,2]
[329452152,1718374253477,-2766.67,0.00018616,2]
[329452154,1718374253491,-1076.57,0.00018616,2]
[329452156,1718374253503,-586.45319058,0.00018616,2]
[329452158,1718374253528,-1045.05,0.00018616,2]
[329452160,1718374253540,-500.0,0.00018616,2]
[329452163,1718374253552,-2189.67,0.00018617,2]
[329452165,1718374253568,-500.0,0.00018617,2]
[329452167,1718374253582,-1765.5,0.00018617,2]
[329452169,1718374253595,-500.0,0.00018617,2]
[329452171,1718374253610,-1396.85,0.00018724,2]
[329452172,1718374253624,-151.0,0.00018725,2]
[329452175,1718374253643,-151.0,0.00018725,2]
[329452177,1718374253655,-257.46445177,0.0001879,2]
[329452179,1718374253670,-385.54290937,0.00018795,4]
[329452181,1718374253686,-1456.02,0.00018796,2]
[329452183,1718374253700,-500.0,0.00018796,2]
[329452185,1718374253712,-220.23496928,0.00018797,2]
[329452187,1718374253726,-282.49542241,0.00018797,2]
[329452189,1718374253739,-508.69063294,0.00018797,2]
[329452193,1718374253782,-282.64811355,0.00018797,2]
[329452195,1718374253800,-692.0639849,0.00018797,2]
[329452197,1718374253816,-722.38007944,0.00018797,2]
[329452199,1718374253829,-158.06038721,0.00018797,2]
[329452216,1718374254057,-411.20432073,0.00018797,2]
[329452218,1718374254072,-322.1560999,0.00018797,2]
[329452220,1718374254094,-78.58927089,0.00018797,2]
[329452222,1718374254116,-570.85957129,0.00018797,2]
[329452223,1718374254141,-183.63846185,0.00018797,2]
[329452224,1718374254153,-155.01395126,0.00018797,2]
[329452225,1718374254184,-417.20233999,0.00018797,2]
[329453460,1718374288441,163.91769632,9.999e-05,2]
[329453463,1718374288528,345.29852918,9.999e-05,2]
[329454790,1718374320647,524.71271013,9.999e-05,2]
[329455237,1718374351447,154.95351395,9.999e-05,2]
[329455239,1718374563877,155.00155002,0.00015,2]
[329455241,1718374690973,1850.0,0.00023,30]
[329455242,1718374767821,165.324909,0.00023562,61]
[329455243,1718374768377,165.324909,0.00023562,120]
[329455245,1718375238327,69807.96552567,0.000265,120]
[329455246,1718375310790,1518.91993593,9.999e-05,2]
[329455247,1718375324823,522.91040662,9.999e-05,2]
[329455248,1718375343542,530.57585468,9.999e-05,2]
[329455365,1718375450233,-344.338,0.00015219,2]
[329455392,1718375450956,-574.6543057,0.00015219,2]
[329455395,1718375451017,-1007.57660038,0.00016001,2]
[329455399,1718375451054,-533.48968435,0.00016001,2]
[329455404,1718375451159,-300.0,0.00016062,2]
[329455409,1718375451225,-300.0,0.00016062,2]
[329455411,1718375451285,-1596.52400624,0.00016063,2]
[329455424,1718375451582,-13869.35157368,0.00016063,2]
[329455426,1718375451603,-20525.13360028,0.00016064,2]
[329455428,1718375451614,-265.916505,0.00016101,2]
[329455429,1718375451642,-157.919579,0.00016164,2]
[329455431,1718375451676,-1007.57660034,0.00016424,2]
[329455434,1718375451712,-163.91769632,0.00016667,2]
[329455435,1718375451728,-1007.57660034,0.00016847,2]
[329455437,1718375451741,-1007.57660034,0.0001727,2]
[329455439,1718375451751,-533.48968428,0.00017345,2]
[329455441,1718375451776,-331.0,0.00017479,2]
[329455443,1718375451821,-2379.46869338,0.00017593,2]
[329455445,1718375451868,-331.0,0.00017689,2]
[329455446,1718375451891,-500.0,0.0001769,2]
[329455449,1718375451930,-500.0,0.0001769,2]
[329455451,1718375451955,-500.0,0.0001769,2]
[329455453,1718375451977,-500.0,0.0001769,2]
[329455456,1718375451990,-500.0,0.0001769,2]
[329455458,1718375452005,-3717.17,0.00017691,2]
[329455460,1718375452015,-180.65485308,0.00017691,2]
[329455462,1718375452028,-500.0,0.00017691,2]
[329455466,1718375452070,-500.0,0.00017691,2]
[329455468,1718375452084,-500.0,0.00017691,2]
[329455469,1718375452095,-500.0,0.00017691,2]
[329455470,1718375452106,-500.0,0.00017691,2]
[329455472,1718375452128,-500.0,0.00017691,2]
[329455473,1718375452138,-500.0,0.00017691,2]
[329455475,1718375452185,-500.0,0.00017691,2]
[329455478,1718375452212,-500.0,0.00017691,2]
[329455481,1718375452251,-8730.58,0.00017691,2]
[329455482,1718375452263,-500.0,0.00017691,2]
[329455486,1718375452306,-500.0,0.00017691,2]
[329455488,1718375452336,-500.0,0.00017691,2]
[329455491,1718375452356,-500.0,0.00017691,2]
[329455492,1718375452368,-1007.57660034,0.00017693,2]
[329455493,1718375452381,-155.0,0.00017775,2]
[329455494,1718375452395,-562.87531021,0.00017776,2]
[329455495,1718375452407,-89101.77838701,0.00017777,8]
[329455496,1718375452425,-525.98843399,0.00017788,2]
[329455497,1718375452467,-1328.69531969,0.00017789,2]
[329455498,1718375452480,-500.0,0.0001779,2]
[329455499,1718375452504,-500.0,0.0001779,2]
[329455500,1718375452528,-500.0,0.0001779,2]
[329455501,1718375452596,-500.0,0.0001779,2]
[329455502,1718375452609,-500.0,0.0001779,2]
[329455503,1718375452623,-411.59502274,0.0001779,2]
[329455504,1718375452634,-660.03448969,0.0001779,2]
[329455505,1718375452656,-500.0,0.0001779,2]
[329455506,1718375452671,-500.0,0.0001779,2]
[329455507,1718375452683,-500.0,0.0001779,2]
[329455508,1718375452713,-500.0,0.0001779,2]
[329455509,1718375452767,-927.77008751,0.0001779,2]
[329455510,1718375452793,-500.0,0.0001779,2]
[329455511,1718375452841,-500.0,0.0001779,2]
[329455512,1718375452852,-500.0,0.0001779,2]
[329455513,1718375452865,-195.16599108,0.0001779,2]
[329455514,1718375452889,-155.09630631,0.0001779,2]
[329455515,1718375452903,-159.10924468,0.0001779,2]
[329455516,1718375452922,-5061.62219714,0.0001779,2]
[329455517,1718375452940,-500.0,0.0001779,2]
[329455518,1718375452956,-403.82580231,0.0001779,2]
[329455519,1718375452968,-500.0,0.0001779,2]
[329455520,1718375452981,-500.0,0.0001779,2]
[329455523,1718375452993,-500.0,0.0001779,2]
[329455525,1718375453011,-500.0,0.0001779,2]
[329455527,1718375453021,-500.0,0.0001779,2]
[329455529,1718375453056,-500.0,0.0001779,2]
[329455531,1718375453076,-500.0,0.0001779,2]
[329455532,1718375453090,-500.0,0.0001779,2]
[329455534,1718375453104,-500.0,0.0001779,2]
[329455536,1718375453118,-500.0,0.0001779,2]
[329455538,1718375453132,-500.0,0.0001779,2]
[329455541,1718375453177,-500.0,0.0001779,2]
[329455543,1718375453204,-500.0,0.0001779,2]
[329455544,1718375453232,-500.0,0.0001779,2]
[329455546,1718375453245,-17433.20106898,0.00017791,2]
[329455547,1718375453264,-155.01240099,0.00017791,2]
[329455549,1718375453281,-199.23986249,0.00017791,2]
[329455551,1718375453307,-778.25820441,0.00017791,2]
[329455553,1718375453319,-272.63741379,0.00017791,2]
[329455555,1718375453342,-8730.58,0.00017791,2]
[329455557,1718375453384,-13582.41438371,0.00017792,13]
[329455560,1718375453410,-32098.8400073,0.00017792,15]
[329455562,1718375453454,-14774.23834254,0.00017792,2]
[329455563,1718375453478,-500.0,0.00017792,2]
[329455565,1718375453489,-500.0,0.00017792,2]
[329455567,1718375453520,-558.67702995,0.00017792,2]
[329455569,1718375453532,-524.55338228,0.00017792,2]
[329455571,1718375453545,-500.0,0.00017792,2]
[329455573,1718375453564,-500.0,0.00017792,2]
[329455575,1718375453575,-500.0,0.00017792,2]
[329455577,1718375453587,-500.0,0.00017792,2]
[329455579,1718375453598,-500.0,0.00017792,2]
[329455580,1718375453613,-500.0,0.00017792,2]
[329455582,1718375453627,-500.0,0.00017792,2]
[329455585,1718375453643,-500.0,0.00017792,2]
[329455587,1718375453680,-500.0,0.00017792,2]
[329455589,1718375453704,-500.0,0.00017792,2]
[329455591,1718375453716,-500.0,0.00017792,2]
[329455593,1718375453727,-500.0,0.00017792,2]
[329455595,1718375453747,-5680.8,0.00017792,2]
[329455597,1718375453770,-500.0,0.00017792,2]
[329455599,1718375453802,-500.0,0.00017792,2]
[329455600,1718375453820,-500.0,0.00017792,2]
[329455602,1718375453837,-2028.85,0.00017792,2]
[329455604,1718375453848,-500.0,0.00017792,2]
[329455607,1718375453861,-500.0,0.00017792,2]
[329455609,1718375453876,-500.0,0.00017792,2]
[329455610,1718375453905,-504.95465891,0.00017792,2]
[329455612,1718375453924,-500.0,0.00017792,2]
[329455614,1718375453949,-500.0,0.00017792,2]
[329455617,1718375453984,-1597.14,0.00017792,2]
[329455619,1718375454007,-8730.58,0.00017792,2]
[329455620,1718375454024,-8730.58,0.00017792,2]
[329455621,1718375454049,-806.51,0.00017792,2]
[329455622,1718375454084,-580.25,0.00017792,2]
[329455623,1718375454112,-151.236685,0.00017792,2]
[329455624,1718375454180,-500.0,0.00017792,2]
[329455625,1718375454236,-504.23,0.00017792,2]
[329455626,1718375454257,-500.0,0.00017792,2]
[329455627,1718375454310,-500.0,0.00017793,2]
[329455628,1718375454336,-500.0,0.00017793,2]
[329455629,1718375454347,-517.32525937,0.00017793,2]
[329455630,1718375454358,-500.0,0.00017793,2]
[329455632,1718375454388,-500.0,0.00017793,2]
[329455634,1718375454406,-504.86257942,0.00017793,2]
[329455636,1718375454476,-500.0,0.00017793,2]
[329455638,1718375454525,-500.0,0.00017793,2]
[329455641,1718375454569,-500.0,0.00017793,2]
[329455643,1718375454589,-370.64567787,0.00017793,2]
[329455645,1718375454646,-500.0,0.00017793,2]
[329455648,1718375454657,-500.0,0.00017793,2]
[329455650,1718375454675,-503.4473799,0.00017793,2]
[329455651,1718375454686,-500.0,0.00017793,2]
[329455654,1718375454701,-500.0,0.00017793,2]
[329455657,1718375454759,-500.0,0.00017793,2]
[329455659,1718375454786,-347.31331399,0.00017793,2]
[329455667,1718375454990,-152.68668601,0.00017793,2]
[329455669,1718375455031,-500.0,0.00017793,2]
[329455670,1718375455064,-500.0,0.00017793,2]
[329455672,1718375455096,-500.0,0.00017793,2]
[329455674,1718375455153,-500.0,0.00017793,2]
[329455677,1718375455165,-500.0,0.00017793,2]
[329455679,1718375455181,-500.0,0.00017793,2]
[329455680,1718375455197,-500.0,0.00017793,2]
[329455681,1718375455225,-583.87,0.00017793,2]
[329455683,1718375455256,-500.0,0.00017793,2]
[329455685,1718375455274,-361.68311551,0.00017793,2]
[329455687,1718375455294,-228.01299074,0.00017793,2]
[329455722,1718375456168,-271.98700926,0.00017793,2]
[329455724,1718375456185,-500.0,0.00017793,2]
[329455726,1718375456210,-500.0,0.00017793,2]
[329455728,1718375456222,-500.0,0.00017793,2]
[329455730,1718375456236,-500.0,0.00017793,2]
[329455732,1718375456249,-500.0,0.00017793,2]
[329455734,1718375456267,-500.0,0.00017793,2]
[329455735,1718375456285,-500.0,0.00017793,2]
[329455736,1718375456300,-500.0,0.00017793,2]
[329455739,1718375456352,-500.0,0.00017793,2]
[329455741,1718375456368,-500.0,0.00017793,2]
[329455742,1718375456384,-500.0,0.00017793,2]
[329455745,1718375456433,-500.0,0.00017793,2]
[329455748,1718375456468,-500.0,0.00017793,2]
[329455750,1718375456480,-500.0,0.00017793,2]
[329455752,1718375456513,-462.2779702,0.00017793,2]
[329455754,1718375456536,-500.0,0.00017793,2]
[329455755,1718375456568,-500.0,0.00017793,2]
[329455757,1718375456596,-500.0,0.00017793,2]
[329455759,1718375456608,-500.0,0.00017793,2]
[329455761,1718375456642,-500.0,0.00017793,2]
[329455763,1718375456654,-500.0,0.00017793,2]
[329455765,1718375456681,-500.0,0.00017793,2]
[329455767,1718375456692,-500.0,0.00017793,2]
[329455769,1718375456718,-500.0,0.00017793,2]
[329455771,1718375456731,-500.0,0.00017793,2]
[329455773,1718375456743,-500.0,0.00017793,2]
[329455775,1718375456754,-500.0078982,0.00017793,2]
[329455777,1718375456770,-500.0,0.00017793,2]
[329455779,1718375456799,-500.0,0.00017793,2]
[329455782,1718375456892,-500.0,0.00017793,2]
[329455783,1718375456909,-500.0,0.00017793,2]
[329455784,1718375456935,-500.0,0.00017793,2]
[329455787,1718375456961,-500.0,0.00017793,2]
[329455790,1718375456993,-500.0,0.00017793,2]
[329455792,1718375457006,-500.0,0.00017793,2]
[329455794,1718375457036,-500.0,0.00017793,2]
[329455796,1718375457051,-500.0,0.00017793,2]
[329455799,1718375457068,-500.0,0.00017793,2]
[329455801,1718375457092,-500.0,0.00017793,2]
[329455803,1718375457114,-510.16329444,0.00017793,2]
[329455805,1718375457140,-500.0,0.00017793,2]
[329455807,1718375457174,-500.0,0.00017793,2]
[329455809,1718375457210,-437.7783306,0.00017793,2]
[329455811,1718375457248,-500.0,0.00017793,2]
[329455813,1718375457261,-500.0,0.00017793,2]
[329455814,1718375457282,-500.0,0.00017793,2]
[329455816,1718375457297,-500.0,0.00017793,2]
[329455818,1718375457311,-557.62297591,0.00017793,2]
[329455820,1718375457322,-500.0,0.00017793,2]
[329455822,1718375457341,-500.0,0.00017793,2]
[329455824,1718375457364,-500.0,0.00017793,2]
[329455826,1718375457378,-504.93377518,0.00017793,2]
[329455828,1718375457394,-500.0,0.00017793,2]
[329455830,1718375457415,-500.0,0.00017793,2]
[329455833,1718375457439,-500.0,0.00017793,2]
[329455835,1718375457516,-503.54838499,0.00017793,2]
[329455838,1718375457564,-500.0,0.00017793,2]
[329455840,1718375457585,-500.0,0.00017793,2]
[329455842,1718375457597,-500.0,0.00017793,2]
[329455844,1718375457628,-375.15954391,0.00017793,2]
[329455846,1718375457640,-500.0,0.00017793,2]
[329455848,1718375457657,-500.0,0.00017793,2]
[329455849,1718375457678,-504.29185432,0.00017793,2]
[329455850,1718375457745,-500.0,0.00017793,2]
[329455852,1718375457762,-500.0,0.00017793,2]
[329455855,1718375457781,-500.0,0.00017793,2]
[329455863,1718375457792,-500.0,0.00017793,2]
[329455865,1718375457975,-500.0,0.00017793,2]
[329455868,1718375457997,-299.97,0.00017793,2]
[329455870,1718375458021,-500.0,0.00017793,2]
[329455872,1718375458033,-500.0,0.00017793,2]
[329455874,1718375458060,-500.0,0.00017793,2]
[329455876,1718375458075,-500.0,0.00017793,2]
[329455879,1718375458096,-500.0,0.00017793,2]
[329455881,1718375458110,-500.0,0.00017793,2]
[329455883,1718375458125,-500.0,0.00017793,2]
[329455884,1718375458138,-546.04903319,0.00017793,2]
[329455886,1718375458150,-500.0,0.00017793,2]
[329455888,1718375458161,-500.0,0.00017793,2]
[329455890,1718375458173,-500.0,0.00017793,2]
[329455892,1718375458184,-500.0,0.00017793,2]
[329455893,1718375458196,-263.59173204,0.00017793,2]
[329455896,1718375458225,-500.0,0.00017793,2]
[329455899,1718375458238,-500.0,0.00017793,2]
[329455901,1718375458250,-3061.86,0.00017793,2]
[329455903,1718375458267,-500.0,0.00017793,2]
[329455905,1718375458296,-500.0,0.00017793,4]
[329455907,1718375458329,-500.0,0.00017793,2]
[329455909,1718375458348,-511.06814897,0.00017793,2]
[329455911,1718375458366,-867.7,0.00017793,2]
[329455914,1718375458394,-500.0,0.00017793,2]
[329455917,1718375458418,-500.0,0.00017793,2]
[329455919,1718375458428,-500.0,0.00017793,2]
[329455922,1718375458461,-156.401885,0.00017793,2]
[329455923,1718375458472,-250.0,0.00017793,2]
[329455925,1718375458509,-500.0,0.00017793,2]
[329455927,1718375458540,-766.755445,0.00017793,2]
[329455930,1718375458553,-766.755445,0.00017793,2]
[329455931,1718375458580,-766.755445,0.00017793,2]
[329455933,1718375458590,-766.755445,0.00017793,2]
[329455935,1718375458607,-766.755445,0.00017793,2]
[329455937,1718375458620,-766.755445,0.00017793,2]
[329455939,1718375458637,-500.0,0.00017793,2]
[329455941,1718375458652,-8730.58,0.00017793,2]
[329455943,1718375458672,-500.0,0.00017793,2]
[329455945,1718375458688,-500.0,0.00017793,2]
[329455947,1718375458712,-505.30840478,0.00017793,2]
[329455950,1718375458733,-806.51,0.00017793,2]
[329455952,1718375458750,-2978.64,0.00017793,2]
[329455954,1718375458761,-1000.0,0.00017793,2]
[329455956,1718375458772,-1000.0,0.00017793,2]